Cogmind - Beta 9 @@@ ROGUE MODE // 2019.10.24 @ 23:15:25 Player: Alexbot Result: Escaped! Performance ------------- Evolutions (9) 4500 Regions Visited (30) 6000 Robots Destroyed (139) 695 Value Destroyed (6016) 6016 Prototype IDs (86) 1720 Alien Tech Used (1) 200 Bonus (22160) 22160 TOTAL SCORE: 41291 Bonus ------- No Salvage 7592 High Alert Combat Kills 369 Follower Combat Kills 2075 Network Hubs Disabled 400 Aligned with FarCom 300 Met Data Miner 300 Met Zhirov 300 Met Warlord at Base 500 MAIN.C Attacked Warlord 500 Built Enhanced Grunts 300 A7 Reached Mainframe 300 Met R17 at Cetus 500 Met Warlord at Research 2000 Win 3000 Challenge Win 7000 Friendly Fire -3276 Cogmind --------- Core Integrity 1589/1600 Matter 270/300 Energy 371/380 System Corruption 1% Temperature Cool (8) Location To Epsilon Eridani Parts ------- Power (2) Mini Fusion Reactor Quantum Reactor Propulsion (5) Combat Gravmag System Combat Gravmag System Combat Gravmag System Improved Antigrav System Cooled Antigrav System Utility (16) Large Storage Unit Large Storage Unit Large Storage Unit Experimental Terrain Scan Processor Experimental Core Analyzer Makeshift Transmission Jammer Experimental Propulsion Shielding Experimental Utility Shielding Improved Weapon Shielding Hacking Suite Hacking Suite Advanced Hacking Suite System Mapper System Shield System Shield Advanced System Shield Weapon (2) Proton Cannon Enhanced Nova Cannon Inventory (22) Improved Fusion Compressor Advanced Coolant Injector Superbattery (2000) Improved Matter Compressor (300) Experimental Terrain Scanner Advanced Particle Charger Improved Weapon Cycler Reaction Control System Experimental Weapon Shielding Advanced Focal Shield Advanced Thermal Shield Advanced Force Field Advanced Force Field Antimissile System System Purifier Transdimensional Reconstructor Mini Assault Cannon Proton Missile Launcher Rocket Array Mini Smartbomb Launcher Remote Datajack Peak State ------------ Power Light Antimatter Reactor Mini Fusion Reactor Propulsion Combat Gravmag System Combat Gravmag System Combat Gravmag System Improved Antigrav System Cooled Antigrav System Utility Advanced Coolant Injector Large Storage Unit Large Storage Unit Large Storage Unit Experimental Terrain Scanner Experimental Terrain Scan Processor Experimental Targeting Computer Experimental Core Analyzer Improved Weapon Cycler Experimental Propulsion Shielding Experimental Utility Shielding Improved Weapon Shielding Advanced Hacking Suite System Mapper System Shield Advanced System Shield Weapon Enhanced Nova Cannon Mini Smartbomb Launcher Inventory Improved Fusion Compressor Superbattery Improved Matter Compressor Advanced Particle Charger Makeshift Transmission Jammer Reaction Control System Improved Propulsion Shielding Experimental Weapon Shielding Advanced Focal Shield Advanced Thermal Shield Advanced Force Field Advanced Force Field Antimissile System Hacking Suite System Shield System Purifier Transdimensional Reconstructor Proton Cannon Mini Assault Cannon Proton Missile Launcher Rocket Array Remote Datajack [Rating: 162] Favorites ----------- Power Light Ion Engine Engine Light Ion Engine Power Core Light Neutrino Core Reactor Light Antimatter Reactor Propulsion Combat Gravmag System Treads Light Treads Leg Improved Aluminum Leg Wheel Armored Huge Wheel Hover Unit Combat Gravmag System Utility Large Storage Unit Device Coolant Injector Storage Large Storage Unit Processor Enhanced Optical Array Hackware System Shield Protection Improved Utility Shielding Weapon Precision Assault Rifle Energy Gun Pulse Rifle Energy Cannon Proton Cannon Ballistic Gun Precision Assault Rifle Ballistic Cannon Mini Assault Cannon Launcher Mini Smartbomb Launcher Special Weapon Remote Datajack Build | -11 -10 -10 -9 -9 -9 -8 -8 -7 -7 -7 -7 -6 -6 -6 -6 -6 -6 -5 -5 -5 -5 -4 -4 -4 -4 -4 -3 -3 -2 -1 ------- Run | Scr Mat Min Mat Min Exi Min Mat Fac Low Low Dat Pro Fac Ext Cet Arc Hub Fac Upp Upp War Pro Fac Upp Upp Zhi Pro Res Res Acc Slots Evolved 18 | . . . 2 . . . 2 2 . . . . 2 . . . . 2 . . . . 2 . . . . 2 2 2 Power 1 | . . . . . . . . . . . . . . . . . . . . . . . 1 . . . . . . . Propulsion 3 | . . . . . . . . . . . . . . . . . . 2 . . . . 1 . . . . . . . Utility 14 | . . . 2 . . . 2 2 . . . . 2 . . . . . . . . . . . . . . 2 2 2 Weapon . | . . . . . . . . . . . . . . . . . . . . . . . . . . . . . . . Parts Attached 207 | 6 1 . 4 3 2 . 5 6 1 3 . . 31 5 8 1 1 16 2 10 18 9 17 5 . 5 5 11 14 18 Power 11 | 1 . . . . . . . . . 1 . . 1 . . . . 1 . . 1 . 2 . . . . 3 . 1 Engine 3 | 1 . . . . . . . . . . . . 1 . . . . . . . . . 1 . . . . . . . Core 4 | . . . . . . . . . . 1 . . . . . . . 1 . . 1 . 1 . . . . . . . Reactor 4 | . . . . . . . . . . . . . . . . . . . . . . . . . . . . 3 . 1 Propulsion 18 | 2 . . . . . . 2 . . 1 . . 3 1 . . . 1 . . 3 . 2 . . . 1 1 . 1 Treads 2 | . . . . . . . 2 . . . . . . . . . . . . . . . . . . . . . . . Leg 4 | . . . . . . . . . . 1 . . 3 . . . . . . . . . . . . . . . . . Wheel 4 | 2 . . . . . . . . . . . . . 1 . . . 1 . . . . . . . . . . . . Hover 8 | . . . . . . . . . . . . . . . . . . . . . 3 . 2 . . . 1 1 . 1 Flight . | . . . . . . . . . . . . . . . . . . . . . . . . . . . . . . . Utility 114 | 2 . . 2 2 2 . 2 5 . 1 . . 17 1 3 . 1 11 1 4 10 5 8 2 . 2 4 6 10 13 Device 58 | . . . . 1 1 . . 1 . . . . 4 . 3 . 1 6 1 3 9 4 4 2 . 1 3 2 5 7 Storage 10 | 2 . . 2 . 1 . 1 1 . . . . . . . . . 1 . . . . . . . 1 . . 1 . Processor 6 | . . . . 1 . . . 1 . . . . . . . . . 2 . . . . . . . . . . 2 . Hackware 9 | . . . . . . . . . . . . . 2 . . . . 1 . . . . 1 . . . . 2 . 3 Protection 31 | . . . . . . . 1 2 . 1 . . 11 1 . . . 1 . 1 1 1 3 . . . 1 2 2 3 Artifact . | . . . . . . . . . . . . . . . . . . . . . . . . . . . . . . . Weapon 64 | 1 1 . 2 1 . . 1 1 1 . . . 10 3 5 1 . 3 1 6 4 4 5 3 . 3 . 1 4 3 Energy Gun 3 | 1 1 . . . . . 1 . . . . . . . . . . . . . . . . . . . . . . . Energy Cannon 23 | . . . . . . . . . . . . . 1 1 2 . . 2 1 4 1 2 3 1 . 1 . 1 1 2 Ballistic Gun 11 | . . . 2 . . . . 1 1 . . . 5 . 1 . . 1 . . . . . . . . . . . . Ballistic Cannon 10 | . . . . 1 . . . . . . . . 3 2 . 1 . . . . 1 . . 1 . 1 . . . . Launcher 13 | . . . . . . . . . . . . . 1 . 2 . . . . 2 1 2 1 1 . . . . 2 1 Special Weapon 4 | . . . . . . . . . . . . . . . . . . . . . 1 . 1 . . 1 . . 1 . Impact Weapon . | . . . . . . . . . . . . . . . . . . . . . . . . . . . . . . . Slashing Weapon . | . . . . . . . . . . . . . . . . . . . . . . . . . . . . . . . Piercing Weapon . | . . . . . . . . . . . . . . . . . . . . . . . . . . . . . . . Special Melee Weapon . | . . . . . . . . . . . . . . . . . . . . . . . . . . . . . . . Unidentified Prototypes 17 | . . . . . 1 . . 1 . . . . 2 . . . . 3 . . 6 . 1 . . 2 . . 1 . Parts Lost 21 | . . . 2 2 . 1 1 . 1 1 . . 6 . . . 1 . . . . 2 1 1 . . 1 . . 1 Power 4 | . . . . . . . . . 1 . . . . . . . . . . . . . 1 . . . 1 . . 1 Propulsion 2 | . . . . 1 . . . . . . . . 1 . . . . . . . . . . . . . . . . . Utility 8 | . . . . . . 1 . . . 1 . . 3 . . . 1 . . . . 2 . . . . . . . . Weapon 7 | . . . 2 1 . . 1 . . . . . 2 . . . . . . . . . . 1 . . . . . . Highest Loss Streak 2 | . . . 2 1 . 1 1 . 1 1 . . 2 . . . 1 . . . . 2 1 1 . . 1 . . 1 Average Slot Usage (%) 90 | . 80 85 71 87 88 79 77 91 90 87 92 92 94 93 93 93 93 87 88 88 92 87 85 99 100 91 96 95 94 94 Engine 4 | . 14 14 11 11 11 11 9 7 5 . . . 4 6 6 6 6 . . . . . 2 5 5 5 5 1 . . Core 2 | . . . . . . . . . . 4 7 7 1 . . . . 4 5 5 5 5 5 5 5 5 2 . . . Treads 2 | . . . . . . . 16 15 15 7 7 7 . . . . . . . . . . . . . . . . . . Leg 2 | . . . . . . . . . . 4 7 7 10 1 . . . . . . . . . . . . . . . . Wheel 4 | . 28 28 22 19 11 11 . . . . . . . 5 6 6 6 10 11 11 2 . . . . . . . . . Hover 5 | . . . . . . . . . . . . . . . . . . . . . 12 17 21 26 26 26 25 21 17 17 Device 5 | . . . . 1 11 2 . 4 7 7 7 7 5 6 6 6 6 5 5 4 8 4 3 5 5 2 4 4 7 14 Storage 19 | . 14 14 16 31 22 22 20 23 23 23 23 23 20 20 20 20 20 17 17 17 17 17 15 15 15 18 15 14 13 12 Processor 8 | . . . . 2 11 11 9 9 7 7 7 7 6 6 6 6 6 10 11 11 11 11 10 10 10 10 10 9 12 11 Hackware 8 | . . . . . . . . . . . . . 9 13 13 13 13 12 17 17 17 17 16 10 10 10 10 19 17 16 Protection 10 | . . . . . . . 3 14 15 15 15 15 20 20 20 20 20 9 5 5 1 5 6 10 10 10 10 8 8 8 Energy Gun 1 | . 23 28 18 . . . 6 7 4 . . . . . . . . . . . . . . . . . . . . . Energy Cannon 1 | . . . . . . . . . . . . . . 5 5 . . 2 5 4 1 1 2 4 5 . 5 3 5 5 Ballistic Gun 6 | . . . 3 11 11 11 9 7 9 15 15 15 9 4 1 6 6 7 5 5 1 . . . . . . . . . Ballistic Cannon 2 | . . . . 10 11 11 1 . . . . . 2 2 3 6 6 . . . 3 1 . 4 5 . 5 4 1 . Naked Turns . | . . . . . . . . . . . . . . . . . . . . . . . . . . . . . . . Heaviest Build 113 | 9 11 11 43 45 43 43 71 78 79 81 81 81 99 94 98 89 91 84 77 77 71 70 94 94 90 93 93 93 109 113 Greatest Support 135 | 26 26 26 26 26 10 10 40 40 40 40 20 20 36 36 28 28 28 56 56 56 85 85 115 115 115 115 115 135 95 122 Greatest Overweight (x) 7 | 2 . . 1 4 4 4 4 1 1 4 4 4 7 3 3 3 3 2 1 1 1 1 1 . . . . 1 1 1 Average Overweight (x) 1 | . . . . 1 4 4 1 1 1 3 4 4 3 2 3 3 2 1 1 1 . . . . . . . . . . Largest Inventory Capacity 22 | 6 6 6 18 18 16 16 22 22 22 22 22 22 22 22 22 22 22 22 22 22 22 22 22 22 22 22 22 22 22 22 Average Capacity 21 | 5 6 6 9 17 16 16 17 22 22 22 22 22 22 22 22 22 22 22 22 22 22 22 22 22 22 22 22 22 22 22 Most Carried 22 | 5 6 6 6 10 12 10 22 22 22 22 21 22 22 22 22 21 22 22 22 22 22 22 22 22 21 22 22 22 22 22 Average Carried 19 | 2 5 6 5 6 9 10 13 21 21 21 21 21 20 21 21 21 21 21 22 21 21 21 21 21 21 21 21 21 21 21 Final Capacity 22 | . . . . . 16 . . . . . . . . . . . . . . . . . . . . . . . . 22 Final Carried 21 | . . . . . 9 . . . . . . . . . . . . . . . . . . . . . . . . 21 Class Distribution -------------------- 45% | Hauler-Mutant 19% | Hacker-Mutant 14% | Mutant 9% | Hacker-Scout 5% | Mechanic-Mutant 5% | Commander-Mutant Dominant Class ---------------- Mutant | -10/Materials Mutant | -10/Mines Mutant | -9/Materials Mutant | -9/Mines Mutant | -9/Exiles Mutant | -8/Mines Mutant | -8/Materials Hauler-Mutant | -7/Factory Hauler-Mutant | -7/Lower Caves Hauler-Mutant | -7/Lower Caves Hauler-Mutant | -7/Data Miner Hauler-Mutant | -6/Proximity Caves Hauler-Mutant | -6/Factory Hauler-Mutant | -6/Extension Hauler-Mutant | -6/Cetus Commander-Mutant | -6/Archives Commander-Mutant | -6/Hub_04(d) Hauler-Mutant | -5/Factory Hacker-Mutant | -5/Upper Caves Hacker-Mutant | -5/Upper Caves Hacker-Mutant | -5/Warlord Hacker-Mutant | -4/Proximity Caves Hacker-Mutant | -4/Factory Mechanic-Mutant | -4/Upper Caves Mechanic-Mutant | -4/Upper Caves Mechanic-Mutant | -4/Zhirov Mechanic-Mutant | -3/Proximity Caves Hacker-Mutant | -3/Research Hacker-Mutant | -2/Research Hacker-Scout | -1/Access Resources | -11 -10 -10 -9 -9 -9 -8 -8 -7 -7 -7 -7 -6 -6 -6 -6 -6 -6 -5 -5 -5 -5 -4 -4 -4 -4 -4 -3 -3 -2 -1 ----------- Run | Scr Mat Min Mat Min Exi Min Mat Fac Low Low Dat Pro Fac Ext Cet Arc Hub Fac Upp Upp War Pro Fac Upp Upp Zhi Pro Res Res Acc Matter Collected 4882 | 224 . . . 273 20 23 147 108 179 81 . 72 664 407 166 30 75 290 . 155 224 . 366 218 34 59 420 222 240 185 Remotely . | . . . . . . . . . . . . . . . . . . . . . . . . . . . . . . . Salvage Created 6610 | . 36 . 92 277 . 32 211 186 446 49 . 57 970 512 198 108 615 287 . 250 . 39 442 230 . . 493 48 764 268 Parts . | . . . . . . . . . . . . . . . . . . . . . . . . . . . . . . . Haulers Intercepted 4 | . . . . . . . . . . . . . . . . . 2 1 . . . . . . . . . . 1 . Recyclers Shooed 1 | . . . . . . . . . . . . . . . . . . . . . . . . . . . . . 1 . Parts Field Recycled . | . . . . . . . . . . . . . . . . . . . . . . . . . . . . . . . Retrieved Matter . | . . . . . . . . . . . . . . . . . . . . . . . . . . . . . . . Parts Self-Destructed . | . . . . . . . . . . . . . . . . . . . . . . . . . . . . . . . Prevented . | . . . . . . . . . . . . . . . . . . . . . . . . . . . . . . . Kills | -11 -10 -10 -9 -9 -9 -8 -8 -7 -7 -7 -7 -6 -6 -6 -6 -6 -6 -5 -5 -5 -5 -4 -4 -4 -4 -4 -3 -3 -2 -1 ------- Run | Scr Mat Min Mat Min Exi Min Mat Fac Low Low Dat Pro Fac Ext Cet Arc Hub Fac Upp Upp War Pro Fac Upp Upp Zhi Pro Res Res Acc Combat Hostiles Destroyed 106 | . 1 . 2 8 . 1 4 3 10 1 . 2 16 6 1 1 1 3 . 12 . 3 7 3 . . 2 . 12 7 Guns 37 | . 1 . 2 4 . . 2 3 10 1 . 2 10 1 . . . 1 . . . . . . . . . . . . Cannons 27 | . . . . 4 . 1 2 . . . . . 4 5 . 1 . 1 . 1 . . 1 . . . . . 4 3 AOE 27 | . . . . . . . . . . . . . 1 . . . . . . 10 . 3 4 1 . . . . 4 4 Classes Destroyed 16 | . 1 . 3 1 . 1 1 . . 1 . . 5 . . . 1 . . . . . 1 . . . . . 1 . Worker 9 | . . . . . . . . . . . . . 1 . . . 7 . . . . . 1 . . . . . . . Builder 4 | . . . . . . . . . . . . . 2 . . . 2 . . . . . . . . . . . . . Tunneler 1 | . . . . . . . . . . . . . . . . . . . . . . . 1 . . . . . . . Hauler 4 | . . . . . . . . . . . . . . . . . 2 1 . . . . . . . . . . 1 . Recycler 3 | . . . . . . . . . . . . . 1 1 . . . . . . . . 1 . . . . . . . Operator 4 | . . . . . . . 1 . . . . . . . . 1 1 . . . . . . . . . . 1 . . Watcher 5 | . . . 1 . . . 1 . . . . . . . 1 . . . . . . . 1 . . . . 1 . . Swarmer 34 | . . . 1 2 . . . . 3 . . 2 4 . . . . . . 10 . . 4 . . . . . 4 4 Grunt 27 | . 1 . . 3 . . 3 . 6 . . . 6 . . . 1 . . . . 3 . 2 . . . . 1 1 Brawler 1 | . . . . 1 . . . . . . . . . . . . . . . . . . . . . . . . . . Duelist 2 | . . . . . . 1 . . 1 . . . . . . . . . . . . . . . . . . . . . Sentry 17 | . . . 1 2 . . 1 3 . . . . 1 5 . 1 . 1 . . . . 1 1 . . . . . . Demolisher 3 | . . . . . . . . . . . . . 2 . . . . . . . . . . . . . . . 1 . Hunter 9 | . . . . . . . . . . 1 . . 2 . . . . . . 2 . . . . . . 2 . 2 . Programmer 9 | . . . . . . . . . . . . . 1 . . . . 2 . . . . 2 . . . . . 2 2 Cetus Guard 1 | . . . . . . . . . . . . . . . 1 . . . . . . . . . . . . . . . Enhanced Grunt 1 | . . . . . . . . . . . . . . . . . 1 . . . . . . . . . . . . . Striker 2 | . . . . . . . . . . . . . . . . . . . . . . . . . . . . . 2 . Savage 1 | . . . . . . . . . . . . . . . . . 1 . . . . . . . . . . . . . Butcher 1 | . . . . . . . . . . . . . . 1 . . . . . . . . . . . . . . . . Best Kill Streak 13 | . 1 . 1 2 . 1 3 2 4 1 . 2 3 2 1 1 13 1 . 5 . 3 6 3 . . 2 1 5 4 Combat Bots Only 5 | . 1 . 1 2 . 1 3 2 4 1 . 2 3 1 1 1 1 1 . 5 . 3 4 3 . . 2 . 4 4 Max Kills in Single Turn 8 | . 1 . 1 1 . 1 1 1 1 1 . 1 2 1 1 1 8 1 . 3 . 3 3 1 . . 1 2 2 2 Gunslinging . | . . . . . . . . . . . . . . . . . . . . . . . . . . . . . . . Exploded 3 | . . . . . . . . . . . . . 1 . . . . . . 3 . 3 3 1 . . . . 2 2 Melee . | . . . . . . . . . . . . . . . . . . . . . . . . . . . . . . . Uniques/NPCs Destroyed 1 | . . . . . . . . . . . . . . . 1 . . . . . . . . . . . . . . . A7 (-6/Cetus) Combat | -11 -10 -10 -9 -9 -9 -8 -8 -7 -7 -7 -7 -6 -6 -6 -6 -6 -6 -5 -5 -5 -5 -4 -4 -4 -4 -4 -3 -3 -2 -1 -------- Run | Scr Mat Min Mat Min Exi Min Mat Fac Low Low Dat Pro Fac Ext Cet Arc Hub Fac Upp Upp War Pro Fac Upp Upp Zhi Pro Res Res Acc Damage Taken 7539 | . 24 . 197 204 . 136 198 419 386 146 . 327 1950 206 152 39 177 236 . 450 40 329 360 285 . . 454 86 585 153 Core 931 | . . . 29 28 . 16 60 30 . . . 17 175 27 . . 17 28 . 70 . 55 79 40 . . 153 . 96 11 Absorbed by Shields 1006 | . . . . . . 32 . . . . . . 57 228 156 . 57 140 . 122 . . . . . . . . 157 57 Core Remaining (%) 89 | 100 . 100 . . . 81 89 . . . . 93 . . . . 74 . . . . 84 . . . . 76 100 93 99 Volleys Fired 579 | . 3 . 9 23 . 4 20 13 23 7 . 9 88 52 40 12 9 27 1 22 4 11 32 18 9 . 28 17 63 35 Largest 2 | . 2 . 2 2 . 2 2 2 2 2 . 2 2 2 1 2 2 2 1 1 1 1 1 1 1 . 1 1 2 1 Hottest 128 | . 90 . 90 59 . 59 83 91 91 56 . 56 60 128 80 76 76 118 90 90 48 90 90 90 75 . 75 75 120 120 Shots Fired 763 | . 6 . 18 44 . 8 37 26 43 14 . 18 133 75 40 14 11 36 1 22 4 11 32 17 9 . 28 17 64 35 Gun 335 | . 6 . 18 29 . 4 25 26 43 14 . 18 90 21 14 12 2 13 . . . . . . . . . . . . Cannon 377 | . . . . 15 . 4 12 . . . . . 37 54 20 2 9 23 1 17 4 6 28 6 9 . 28 17 52 33 Launcher 45 | . . . . . . . . . . . . . 6 . 6 . . . . 5 . 5 4 11 . . . . 6 2 Special 6 | . . . . . . . . . . . . . . . . . . . . . . . . . . . . . 6 . Kinetic 427 | . . . 10 44 . 8 32 13 41 14 . 18 112 44 14 14 11 18 . . 4 . . 5 6 . 6 13 . . Thermal 161 | . 3 . 4 . . . 5 13 2 . . . 15 31 4 . . 14 1 8 . 6 21 1 . . . . 9 24 Explosive 20 | . . . . . . . . . . . . . . . . . . . . 5 . 5 4 2 . . . . 2 2 Electromagnetic 149 | . 3 . 4 . . . . . . . . . 6 . 22 . . 4 . 9 . . 7 9 3 . 22 4 47 9 Robot Hit Streak 26 | . 3 . 4 9 . 4 15 15 12 10 . 3 26 19 9 4 . 18 . 8 . 6 14 5 . . 5 4 19 6 Robot Miss Streak 3 | . 2 . 2 2 . 2 2 2 2 1 . 2 2 2 2 1 . 1 . 1 . 2 1 3 . . 2 2 2 3 Penetration Max . | . . . . . . . . . . . . . . . . . . . . . . . . . . . . . . . Secondary Targets 5 | . . . . . . . . . 1 . . 2 2 . . . . . . . . . . . . . . . . . Max Gunslinging Chain 1 | . . . . . . . . . 1 . . 1 1 . . . . . . . . . . . . . . . . . Shots Hit Robots 462 | . 4 . 9 33 . 5 28 22 33 12 . 11 83 33 28 10 . 24 . 10 . 5 21 7 . . 15 9 48 12 Core Hits 276 | . 2 . 4 11 . 2 13 9 18 3 . 3 43 13 19 6 26 7 . 18 . 16 13 7 . . 4 4 25 10 Critical Hits 8 | . . . 1 1 . . 1 . . . . . . . . . . 1 . 1 . . . . . . . 2 . 1 Critical Kills 1 | . . . . . . . . . . . . . . . . . . . . . . . . . . . . . . 1 Critical Parts Destroyed 5 | . . . . . . . 1 . . . . . . . . . . 1 . 1 . . . . . . . 2 . . Melee Attacks . | . . . . . . . . . . . . . . . . . . . . . . . . . . . . . . . Impact . | . . . . . . . . . . . . . . . . . . . . . . . . . . . . . . . Slashing . | . . . . . . . . . . . . . . . . . . . . . . . . . . . . . . . Piercing . | . . . . . . . . . . . . . . . . . . . . . . . . . . . . . . . Sneak Attacks . | . . . . . . . . . . . . . . . . . . . . . . . . . . . . . . . Combat Hostiles . | . . . . . . . . . . . . . . . . . . . . . . . . . . . . . . . Follow-up Attacks . | . . . . . . . . . . . . . . . . . . . . . . . . . . . . . . . Damage Inflicted 16950 | . 37 . 117 543 . 90 465 410 604 188 . 217 2174 855 834 264 1772 687 . 916 . 824 1252 323 . . 546 491 2217 1124 Guns 4611 | . 37 . 117 278 . 24 254 410 604 188 . 217 1474 334 255 204 . 215 . . . . . . . . . . . . Cannons 6101 | . . . . 265 . 66 211 . . . . . 292 521 249 60 29 472 . 215 . . 810 . . . 546 312 1440 613 Explosions 6209 | . . . . . . . . . . . . . 379 . 330 . 1743 . . 701 . 824 442 323 . . . 179 777 511 Melee . | . . . . . . . . . . . . . . . . . . . . . . . . . . . . . . . Ramming 29 | . . . . . . . . . . . . . 29 . . . . . . . . . . . . . . . . . Kinetic 5461 | . . . 70 543 . 90 431 242 604 188 . 217 1584 480 255 264 29 312 . . . . . . . . . 152 . . Thermal 3089 | . 25 . 25 . . . 34 168 . . . . 182 375 79 . . 261 . . . . 599 . . . . 179 647 515 Explosive 3027 | . . . . . . . . . . . . . . . . . . . . 701 . 824 442 83 . . . . 466 511 Electromagnetic 5344 | . 12 . 22 . . . . . . . . . 379 . 500 . 1743 114 . 215 . . 211 240 . . 546 160 1104 98 Impact . | . . . . . . . . . . . . . . . . . . . . . . . . . . . . . . . Slashing . | . . . . . . . . . . . . . . . . . . . . . . . . . . . . . . . Piercing . | . . . . . . . . . . . . . . . . . . . . . . . . . . . . . . . Highest Corruption 10 | . . . . . . . . . . . . . 2 2 2 2 10 . . . . . 6 6 6 6 6 . 2 1 Average Corruption 2 | . . . . . . . . . . . . . 2 2 2 2 3 . . . . . 5 6 6 6 6 . 2 1 Corruption Purged . | . . . . . . . . . . . . . . . . . . . . . . . . . . . . . . . Effects 59 | . . . . . . . . . . . . . 8 9 3 1 3 . . . . . 2 9 2 3 12 . 5 2 Message Errors 10 | . . . . . . . . . . . . . 2 1 . . . . . . . . . 2 . 1 . . 3 1 Matter Fused 9 | . . . . . . . . . . . . . . . . . 2 . . . . . 1 . 1 2 3 . . . Heat Flow Errors 11 | . . . . . . . . . . . . . 2 2 1 . 1 . . . . . . 2 . . 3 . . . Energy Discharges 8 | . . . . . . . . . . . . . 3 1 1 1 . . . . . . . 1 . . 1 . . . Parts Rejected 1 | . . . . . . . . . . . . . . . . . . . . . . . . . . . 1 . . . Data Loss (minor) 8 | . . . . . . . . . . . . . . 3 . . . . . . . . . 3 1 . 1 . . . Data Loss (major) 1 | . . . . . . . . . . . . . . . . . . . . . . . . . . . 1 . . . Targeting Errors 10 | . . . . . . . . . . . . . 1 2 1 . . . . . . . 1 . . . 2 . 2 1 Weapon Failures 1 | . . . . . . . . . . . . . . . . . . . . . . . . 1 . . . . . . Overload Shots . | . . . . . . . . . . . . . . . . . . . . . . . . . . . . . . . Overflow Damage 328 | . . . . . . . . . . . . . . . 1 . 47 . . 36 . 17 7 . . . 44 2 94 80 Projectiles 153 | . . . . . . . . . . . . . . . 1 . . . . 3 . . 7 . . . 44 . 22 76 Explosions 175 | . . . . . . . . . . . . . . . . . 47 . . 33 . 17 . . . . . 2 72 4 Melee . | . . . . . . . . . . . . . . . . . . . . . . . . . . . . . . . Knockbacks 5 | . . . . 1 . . 2 . . . . . . 1 . . . . . . . . . . . . . 1 . . Impact . | . . . . . . . . . . . . . . . . . . . . . . . . . . . . . . . Kinetic 5 | . . . . 1 . . 2 . . . . . . 1 . . . . . . . . . . . . . 1 . . Secondary . | . . . . . . . . . . . . . . . . . . . . . . . . . . . . . . . Self-Inflicted Damage 423 | . . . . . . . . . . . . . 14 . . . 193 . . 50 . . . 18 . . . 86 62 . Shots 7 | . . . . . . . . . . . . . . . . . 2 . . 2 . . . 1 . . . 1 1 . Rammed 1 | . . . . . . . . . . . . . 1 . . . . . . . . . . . . . . . . . Targets Rammed 1 | . . . . . . . . . . . . . 1 . . . . . . . . . . . . . . . . . Kicked . | . . . . . . . . . . . . . . . . . . . . . . . . . . . . . . . Crushed . | . . . . . . . . . . . . . . . . . . . . . . . . . . . . . . . Highest Temperature 357 | . 102 . 30 5 . 5 42 188 72 18 . 36 198 258 357 6 152 144 26 78 . 120 240 270 102 . 251 7 216 192 Average Temperature 72 | . 50 . 14 3 . 2 14 92 23 8 . 15 68 95 138 4 26 53 19 25 . 51 77 85 47 . 147 3 74 76 Received Heat Transfer 1142 | . 12 . 54 54 . 21 108 126 117 . . . 362 65 16 . 21 . . . 9 48 36 66 . . . . 9 18 Effects 3 | . . . . . . . . . . . . . . . 2 . . . . . . . . 1 . . . . . . Energy Bleed 1 | . . . . . . . . . . . . . . . 1 . . . . . . . . . . . . . . . Interference 1 | . . . . . . . . . . . . . . . . . . . . . . . . 1 . . . . . . Short Circuit 1 | . . . . . . . . . . . . . . . 1 . . . . . . . . . . . . . . . Siege Activations . | . . . . . . . . . . . . . . . . . . . . . . . . . . . . . . . Robots Corrupted 19 | . . . . . . . . . . . . . 2 . 1 . 3 1 . 1 . . 1 2 . . 3 . 5 . Combat Hostiles 15 | . . . . . . . . . . . . . 1 . 1 . 1 1 . 1 . . 1 2 . . 3 . 4 . Parts Fried . | . . . . . . . . . . . . . . . . . . . . . . . . . . . . . . . Impact Corruptions . | . . . . . . . . . . . . . . . . . . . . . . . . . . . . . . . Robots Melted 1 | . . . . . . . . . . . . . . . . . . . . . . . 1 . . . . . . . Combat Hostiles 1 | . . . . . . . . . . . . . . . . . . . . . . . 1 . . . . . . . Parts Melted 2 | . . . . . . . . . . . . . . . . . . . . . . . 2 . . . . . . . Heat Transferred 3257 | . 74 . 74 . . . 74 370 . . . . 296 675 76 . . 259 . . . . 481 . . . . 112 433 333 Parts Sabotaged . | . . . . . . . . . . . . . . . . . . . . . . . . . . . . . . . Parts Stolen 1 | . . . . . . . . . . 1 . . . . . . . . . . . . . . . . . . . . Parts Stripped . | . . . . . . . . . . . . . . . . . . . . . . . . . . . . . . . Power Chain Reactions 2 | . . . . . . . . . . . . . . . . . . . . . . . . . . . . 1 1 . Missiles Intercepted . | . . . . . . . . . . . . . . . . . . . . . . . . . . . . . . . Alert | -11 -10 -10 -9 -9 -9 -8 -8 -7 -7 -7 -7 -6 -6 -6 -6 -6 -6 -5 -5 -5 -5 -4 -4 -4 -4 -4 -3 -3 -2 -1 ------- Run | Scr Mat Min Mat Min Exi Min Mat Fac Low Low Dat Pro Fac Ext Cet Arc Hub Fac Upp Upp War Pro Fac Upp Upp Zhi Pro Res Res Acc Peak Influence 1028 | . 34 13 66 176 . 64 150 163 . . . . 200 327 420 328 1028 1003 . . . . 618 . . . . 434 438 510 Average Influence 190 | . 4 13 24 89 . 56 93 51 . . . . 70 93 205 288 227 702 . . . . 118 . . . . 169 269 313 Maximum Alert Level 3 | . . . . . . . . . . . . . 1 1 2 1 3 3 . . . . 2 . . . . 2 2 2 Low Security (%) 68 | . . . . . . . . . . . . . . . . . . . . . . . . . . . . . . . Level 1 14 | . . . . . . . . . . . . . . . . . . . . . . . . . . . . . . . Level 2 11 | . . . . . . . . . . . . . . . . . . . . . . . . . . . . . . . Level 3 4 | . . . . . . . . . . . . . . . . . . . . . . . . . . . . . . . Level 4 . | . . . . . . . . . . . . . . . . . . . . . . . . . . . . . . . Level 5 . | . . . . . . . . . . . . . . . . . . . . . . . . . . . . . . . High Security . | . . . . . . . . . . . . . . . . . . . . . . . . . . . . . . . Max Security . | . . . . . . . . . . . . . . . . . . . . . . . . . . . . . . . Squads Dispatched 31 | . 1 . . . . . 1 . . . . . 9 2 . . 3 4 . . . . 1 . . . . 5 3 2 Investigation 5 | . 1 . . . . . . . . . . . 3 . . . . . . . . . . . . . . . . 1 Extermination 5 | . . . . . . . . . . . . . 2 . . . . 1 . . . . 1 . . . . . . 1 Reinforcement 18 | . . . . . . . 1 . . . . . 3 2 . . 2 2 . . . . . . . . . 5 3 . Assault 2 | . . . . . . . . . . . . . 1 . . . . 1 . . . . . . . . . . . . Garrison 1 | . . . . . . . . . . . . . . . . . 1 . . . . . . . . . . . . . Intercept . | . . . . . . . . . . . . . . . . . . . . . . . . . . . . . . . Construction Impeded 3 | . . . . . . . . . . . . . 1 1 . . . 1 . . . . . . . . . . . . Haulers Reinforced 6 | . . . . . . . . . . . . . 1 . . . 1 1 . . . . . . . . . 1 2 . Stealth | -11 -10 -10 -9 -9 -9 -8 -8 -7 -7 -7 -7 -6 -6 -6 -6 -6 -6 -5 -5 -5 -5 -4 -4 -4 -4 -4 -3 -3 -2 -1 --------- Run | Scr Mat Min Mat Min Exi Min Mat Fac Low Low Dat Pro Fac Ext Cet Arc Hub Fac Upp Upp War Pro Fac Upp Upp Zhi Pro Res Res Acc Distress Signals 28 | . . . 2 . . . . . . . . . 2 2 2 . 2 2 . . . . 1 . . . . 7 8 . Communications Jammed 37 | . . . . . . . . . . . . . 24 . . . . 1 . . . . . . . . . 5 . 7 Distress Signals 37 | . . . . . . . . . . . . . 24 . . . . 1 . . . . . . . . . 5 . 7 Times Spotted 232 | . 2 . 9 12 . 3 8 4 12 2 . 7 34 17 14 9 16 10 . 12 4 4 11 3 . . 2 6 20 11 Peak Tracking Total 15 | . 2 . 4 4 . 3 3 2 4 1 . 4 6 3 5 2 15 2 . 5 3 3 6 3 . . 2 2 4 7 Tactical Retreats 11 | . . . . 2 . . . . 2 . . . . 3 . . . . . . . 1 . . . . . . 2 1 Traps | -11 -10 -10 -9 -9 -9 -8 -8 -7 -7 -7 -7 -6 -6 -6 -6 -6 -6 -5 -5 -5 -5 -4 -4 -4 -4 -4 -3 -3 -2 -1 ------- Run | Scr Mat Min Mat Min Exi Min Mat Fac Low Low Dat Pro Fac Ext Cet Arc Hub Fac Upp Upp War Pro Fac Upp Upp Zhi Pro Res Res Acc Traps Triggered 10 | . 1 . . . . . . . . . . . 2 2 . . 4 1 . . . . . . . . . . . . Indirectly . | . . . . . . . . . . . . . . . . . . . . . . . . . . . . . . . Trap Hack Attempts . | . . . . . . . . . . . . . . . . . . . . . . . . . . . . . . . Triggered . | . . . . . . . . . . . . . . . . . . . . . . . . . . . . . . . Disarmed . | . . . . . . . . . . . . . . . . . . . . . . . . . . . . . . . Reprogrammed . | . . . . . . . . . . . . . . . . . . . . . . . . . . . . . . . Reused . | . . . . . . . . . . . . . . . . . . . . . . . . . . . . . . . Traps Extracted . | . . . . . . . . . . . . . . . . . . . . . . . . . . . . . . . Installed . | . . . . . . . . . . . . . . . . . . . . . . . . . . . . . . . Triggered 6 | . . . . . . . . . . . . . . . . . . . . . 6 . . . . . . . . . Machines | -11 -10 -10 -9 -9 -9 -8 -8 -7 -7 -7 -7 -6 -6 -6 -6 -6 -6 -5 -5 -5 -5 -4 -4 -4 -4 -4 -3 -3 -2 -1 ---------- Run | Scr Mat Min Mat Min Exi Min Mat Fac Low Low Dat Pro Fac Ext Cet Arc Hub Fac Upp Upp War Pro Fac Upp Upp Zhi Pro Res Res Acc Machines Disabled 34 | . . . . 1 . . . . . . . . . 4 . 2 20 2 . . . . . . . . . 1 . 4 Max in Single Turn 10 | . . . . 1 . . . . . . . . . 1 . 1 10 1 . . . . . . . . . 1 . 1 Garrison Access 8 | . . . . . . . . 1 . . . . 1 . . . . 2 . . . . . . . . . . 2 2 Network Hub 2 | . . . . . . . . . . . . . . . . . 2 . . . . . . . . . . . . . Machines Sabotaged . | . . . . . . . . . . . . . . . . . . . . . . . . . . . . . . . Garrisons Compromised . | . . . . . . . . . . . . . . . . . . . . . . . . . . . . . . . Overloaded Fab Kills . | . . . . . . . . . . . . . . . . . . . . . . . . . . . . . . . Fab Network Shutdowns 3 | . . . . . . . . . . . . . . . . . . 1 . . . . 1 . . . . 1 . . Hacking | -11 -10 -10 -9 -9 -9 -8 -8 -7 -7 -7 -7 -6 -6 -6 -6 -6 -6 -5 -5 -5 -5 -4 -4 -4 -4 -4 -3 -3 -2 -1 --------- Run | Scr Mat Min Mat Min Exi Min Mat Fac Low Low Dat Pro Fac Ext Cet Arc Hub Fac Upp Upp War Pro Fac Upp Upp Zhi Pro Res Res Acc Machines Accessed 90 | . 3 . 2 . 1 . 1 5 1 . 4 . 10 12 4 . 4 9 . . 7 . 6 1 . 4 1 6 1 8 Terminals 47 | . 2 . 1 . . . 1 2 . . . . 5 12 4 . 4 5 . . . . 3 . . . 1 3 . 4 Fabricators 8 | . . . . . . . . 1 . . . . 3 . . . . 2 . . . . 1 . . . . 1 . . Repair Stations 4 | . . . . . . . . . . . . . 1 . . . . . . . . . 1 . . . . 1 . 1 Recycling Units 2 | . 1 . 1 . . . . . . . . . . . . . . . . . . . . . . . . . . . Scanalyzers 4 | . . . . . . . . 1 . . . . 1 . . . . . . . . . 1 . . . . 1 . . Garrison Access 7 | . . . . . . . . 1 . . . . . . . . . 2 . . . . . . . . . . 1 3 Total Hacks 361 | . 5 . 3 . 1 . 4 14 1 . 26 . 34 46 14 . 14 46 . . 7 . 46 1 . 17 1 45 1 35 Successful 230 | . 1 . 1 . 1 . 2 8 1 . 26 . 20 21 7 . 13 24 . . 7 . 30 1 . 17 1 30 1 18 Failed 131 | . 4 . 2 . . . 2 6 . . . . 14 25 7 . 1 22 . . . . 16 . . . . 15 . 17 Catastrophic 20 | . 1 . . . . . . 2 . . . . 3 2 2 . . 4 . . . . 1 . . . . 4 . 1 Database Lockouts . | . . . . . . . . . . . . . . . . . . . . . . . . . . . . . . . Manual 164 | . . . 2 . 1 . 1 5 . . . . 13 45 13 . 8 25 . . 1 . 18 . . . . 26 . 6 Terminals 207 | . 4 . 2 . . . 4 10 . . . . 20 46 14 . 14 35 . . . . 15 . . . 1 26 . 16 Fabricators 50 | . . . . . . . . 1 . . . . 11 . . . . 8 . . . . 23 . . . . 7 . . Repair Stations 27 | . . . . . . . . . . . . . 2 . . . . . . . . . 5 . . . . 11 . 9 Recycling Units 2 | . 1 . 1 . . . . . . . . . . . . . . . . . . . . . . . . . . . Scanalyzers 7 | . . . . . . . . 2 . . . . 1 . . . . . . . . . 3 . . . . 1 . . Garrison Access 15 | . . . . . . . . 1 . . . . . . . . . 3 . . . . . . . . . . 1 10 Terminal Hacks 127 | . 1 . . . 1 . 1 4 1 . 26 . 6 18 4 . 8 12 . . 7 . 4 1 . 17 1 9 . 6 Record 22 | . . . . . . . . . . . 11 . . . . . . . . . 5 . . . . 5 1 . . . Part Schematic 29 | . . . . . . . . 1 . . 7 . 1 5 . . . 6 . . . . 1 . . 4 . 4 . . Robot Schematic 5 | . . . . . . . . . . . 5 . . . . . . . . . . . . . . . . . . . Robot Analysis 14 | . 1 . . . . . . . . . . . . 7 . . . . . . . . . . . 4 . 2 . . Prototype ID Bank 13 | . . . . . . . 1 1 . . 3 . . 3 . . 1 . . . . . . . . 4 . . . . Open Door 6 | . . . . . . . . . 1 . . . . . 1 . . . . . 2 . . 1 . . . . . 1 Level Access Points 3 | . . . . . . . . . . . . . . . . . 1 . . . . . . . . . . 1 . 1 Branch Access Points 4 | . . . . . . . . 1 . . . . 1 . . . . 1 . . . . 1 . . . . . . . Terminal Index 1 | . . . . . . . . . . . . . . . . . . 1 . . . . . . . . . . . . Fabricator Index 3 | . . . . . . . . . . . . . 1 . . . . 1 . . . . 1 . . . . . . . Alert Level 2 | . . . . . . . . . . . . . . 1 . . . . . . . . . . . . . 1 . . Unreport Threat 12 | . . . . . . . . . . . . . 1 2 3 . 2 . . . . . . . . . . 1 . 3 Locate Traps 3 | . . . . . . . . . . . . . . . . . 1 2 . . . . . . . . . . . . Recall Reinforcements 1 | . . . . . . . . . . . . . . . . . 1 . . . . . . . . . . . . . Hauler Manifests 6 | . . . . . . . . 1 . . . . 1 . . . 1 1 . . . . 1 . . . . . . 1 Zone Layout 2 | . . . . . . . . . . . . . 1 . . . 1 . . . . . . . . . . . . . EX-Prototype ID Bank 1 | . . . . . 1 . . . . . . . . . . . . . . . . . . . . . . . . . Fabricator Hacks 34 | . . . . . . . . . . . . . 8 . . . . 6 . . . . 15 . . . . 5 . . Network Status 7 | . . . . . . . . . . . . . . . . . . 2 . . . . 4 . . . . 1 . . Load Schematic 14 | . . . . . . . . . . . . . 4 . . . . 2 . . . . 6 . . . . 2 . . Build 13 | . . . . . . . . . . . . . 4 . . . . 2 . . . . 5 . . . . 2 . . Repair Station Hacks 21 | . . . . . . . . . . . . . 1 . . . . . . . . . 2 . . . . 10 . 8 Scan Component 11 | . . . . . . . . . . . . . 1 . . . . . . . . . 1 . . . . 5 . 4 Repair 10 | . . . . . . . . . . . . . . . . . . . . . . . 1 . . . . 5 . 4 Recycling Unit Hacks 1 | . . . 1 . . . . . . . . . . . . . . . . . . . . . . . . . . . Retrieve Components 1 | . . . 1 . . . . . . . . . . . . . . . . . . . . . . . . . . . Scanalyzer 7 | . . . . . . . . 2 . . . . 1 . . . . . . . . . 3 . . . . 1 . . Insert Component 6 | . . . . . . . . 1 . . . . 1 . . . . . . . . . 3 . . . . 1 . . Analyze 1 | . . . . . . . . 1 . . . . . . . . . . . . . . . . . . . . . . Garrison Access Hacks 6 | . . . . . . . . 1 . . . . . . . . . 2 . . . . . . . . . . 1 2 Seal Access 6 | . . . . . . . . 1 . . . . . . . . . 2 . . . . . . . . . . 1 2 Unauthorized Hacks 86 | . . . 2 . . . 2 2 . . . . 9 7 7 . 10 12 . . . . 17 . . . . 12 . 6 Terminals 28 | . . . . . . . 1 1 . . . . 4 3 3 . 5 2 . . . . 4 . . . . 3 . 2 Track 1 | . . . . . . . . . . . . . . . 1 . . . . . . . . . . . . . . . Assimilate 5 | . . . . . . . . . . . . . 1 1 . . . . . . . . 1 . . . . 1 . 1 Botnet 18 | . . . . . . . 1 1 . . . . 3 2 1 . 3 2 . . . . 2 . . . . 2 . 1 Disrupt 2 | . . . . . . . . . . . . . . . 1 . 1 . . . . . . . . . . . . . Operators 2 | . . . . . . . . . . . . . . . . . 1 . . . . . 1 . . . . . . . Fabricators 6 | . . . . . . . . . . . . . . . . . . 2 . . . . 2 . . . . 2 . . Report 3 | . . . . . . . . . . . . . . . . . . 1 . . . . 1 . . . . 1 . . Siphon 3 | . . . . . . . . . . . . . . . . . . 1 . . . . 1 . . . . 1 . . Repair Stations . | . . . . . . . . . . . . . . . . . . . . . . . . . . . . . . . Recycling Units . | . . . . . . . . . . . . . . . . . . . . . . . . . . . . . . . Scanalyzers . | . . . . . . . . . . . . . . . . . . . . . . . . . . . . . . . Garrison Access . | . . . . . . . . . . . . . . . . . . . . . . . . . . . . . . . Data Cores Recovered . | . . . . . . . . . . . . . . . . . . . . . . . . . . . . . . . Used . | . . . . . . . . . . . . . . . . . . . . . . . . . . . . . . . Hacking Detections 52 | . 3 . 2 . . . 1 3 . . . . 9 11 3 . 4 5 . . . . 3 . . . . 3 . 5 Full Trace Events 3 | . . . . . . . . . . . . . 2 . . . . . . . . . . . . . . . . 1 Feedback Events . | . . . . . . . . . . . . . . . . . . . . . . . . . . . . . . . Feedback Blocked . | . . . . . . . . . . . . . . . . . . . . . . . . . . . . . . . Robot Schematics Acquired 5 | . . . . . . . . . . . 5 . . . . . . . . . . . . . . . . . . . Robots Built . | . . . . . . . . . . . . . . . . . . . . . . . . . . . . . . . Matter . | . . . . . . . . . . . . . . . . . . . . . . . . . . . . . . . Time . | . . . . . . . . . . . . . . . . . . . . . . . . . . . . . . . Total Robot Build Rating . | . . . . . . . . . . . . . . . . . . . . . . . . . . . . . . . Part Schematics Acquired 30 | . . . . . . . . 2 . . 7 . 1 5 . . . 6 . . . . 1 . . 4 . 4 . . Parts Built 12 | . . . . . . . . . . . . . 2 . . . . 2 . . . . 6 . . . . 2 . . Matter 2623 | . . . . . . . . . . . . . 636 . . . . 425 . . . . 1036 . . . . 526 . . Time 1166 | . . . . . . . . . . . . . 169 . . . . 258 . . . . 365 . . . . 374 . . Total Part Build Rating 70 | . . . . . . . . . . . . . 12 . . . . 11 . . . . 33 . . . . 14 . . Parts Repaired 9 | . . . . . . . . . . . . . . . . . . . . . . . 1 . . . . 4 . 4 Time 352 | . . . . . . . . . . . . . . . . . . . . . . . 12 . . . . 213 . 127 Parts Recycled . | . . . . . . . . . . . . . . . . . . . . . . . . . . . . . . . Recycled Matter . | . . . . . . . . . . . . . . . . . . . . . . . . . . . . . . . Retrieved Matter . | . . . . . . . . . . . . . . . . . . . . . . . . . . . . . . . Retrieved Components . | . . . . . . . . . . . . . . . . . . . . . . . . . . . . . . . Parts Scanalyzed 1 | . . . . . . . . 1 . . . . . . . . . . . . . . . . . . . . . . Part Schematics Acquired 1 | . . . . . . . . 1 . . . . . . . . . . . . . . . . . . . . . . Parts Damaged . | . . . . . . . . . . . . . . . . . . . . . . . . . . . . . . . Bothacking | -11 -10 -10 -9 -9 -9 -8 -8 -7 -7 -7 -7 -6 -6 -6 -6 -6 -6 -5 -5 -5 -5 -4 -4 -4 -4 -4 -3 -3 -2 -1 ------------ Run | Scr Mat Min Mat Min Exi Min Mat Fac Low Low Dat Pro Fac Ext Cet Arc Hub Fac Upp Upp War Pro Fac Upp Upp Zhi Pro Res Res Acc Used RIF Installer . | . . . . . . . . . . . . . . . . . . . . . . . . . . . . . . . Robots Hacked 5 | . . . . . . . . . . . . . . . . . . . . . . . . . . . . . 5 . Non-combat 2 | . . . . . . . . . . . . . . . . . . . . . . . . . . . . . 2 . Combat 3 | . . . . . . . . . . . . . . . . . . . . . . . . . . . . . 3 . Robot Hacks Applied 5 | . . . . . . . . . . . . . . . . . . . . . . . . . . . . . 5 . parse_system 5 | . . . . . . . . . . . . . . . . . . . . . . . . . . . . . 5 . Relay Couplers Released 3 | . . . . . . . . . . . . . 2 . . . . . . . . . . . . . . . 1 . Machine Destruction 3 | . . . . . . . . . . . . . 2 . . . . . . . . . . . . . . . 1 . Robots Rewired 11 | . . . . . . . . . . . . . . 11 . . . . . . . . . . . . . . . . Allies Hacked . | . . . . . . . . . . . . . . . . . . . . . . . . . . . . . . . Hacks Repelled . | . . . . . . . . . . . . . . . . . . . . . . . . . . . . . . . Allies | -11 -10 -10 -9 -9 -9 -8 -8 -7 -7 -7 -7 -6 -6 -6 -6 -6 -6 -5 -5 -5 -5 -4 -4 -4 -4 -4 -3 -3 -2 -1 -------- Run | Scr Mat Min Mat Min Exi Min Mat Fac Low Low Dat Pro Fac Ext Cet Arc Hub Fac Upp Upp War Pro Fac Upp Upp Zhi Pro Res Res Acc Total Allies 34 | . . . . 3 . . . . . . . 1 1 21 5 . . . . . . . 1 . . . . 1 . 1 Largest Group 12 | . . . . 3 1 1 1 . . . . 1 1 8 12 11 9 2 . . . . 1 1 1 1 1 2 1 1 Highest-Rated Group 784 | . . . . 40 16 16 16 . . . . 94 10 314 784 628 566 188 . . . . 26 26 26 26 26 70 40 44 Highest-Rated Ally 156 | . . . . 16 16 16 16 . . . . 94 10 156 156 94 94 94 . . . . 26 26 26 26 26 44 40 44 Total Orders 27 | . . . . . . . . . . . . . 3 . . 2 5 . . . . . 7 2 . . 3 2 3 . STAY 10 | . . . . . . . . . . . . . 1 . . 1 3 . . . . . 2 1 . . . 1 1 . GOTO 6 | . . . . . . . . . . . . . 1 . . . . . . . . . 2 . . . 2 . 1 . FOLLOW 11 | . . . . . . . . . . . . . 1 . . 1 2 . . . . . 3 1 . . 1 1 1 . Ally Attacks 291 | . . . . 29 . 6 6 . . . . 21 . 79 66 17 55 12 . . . . . . . . . . . . Total Damage 7744 | . . . . 327 . 97 83 . . . . 787 . 2119 1849 490 1561 431 . . . . . . . . . . . . Kills 65 | . . . . 2 . 2 . . . . . 7 . 16 13 3 17 5 . . . . . . . . . . . . Allies Corrupted 4 | . . . . . . . . . . . . . . 1 . . 1 2 . . . . . . . . . . . . Allies Melted . | . . . . . . . . . . . . . . . . . . . . . . . . . . . . . . . Intel | -11 -10 -10 -9 -9 -9 -8 -8 -7 -7 -7 -7 -6 -6 -6 -6 -6 -6 -5 -5 -5 -5 -4 -4 -4 -4 -4 -3 -3 -2 -1 ------- Run | Scr Mat Min Mat Min Exi Min Mat Fac Low Low Dat Pro Fac Ext Cet Arc Hub Fac Upp Upp War Pro Fac Upp Upp Zhi Pro Res Res Acc Robot Analysis Total 14 | . 1 . . . . . . . . . . . . 7 . . . . . . . . . . . 4 . 2 . . Derelict Logs Recovered 9 | . . . . 2 . . . . 1 1 . 3 . . . . . . . . . . . 1 1 . . . . . Drone Launches . | . . . . . . . . . . . . . . . . . . . . . . . . . . . . . . . Drone Recoveries . | . . . . . . . . . . . . . . . . . . . . . . . . . . . . . . . Exploration | -11 -10 -10 -9 -9 -9 -8 -8 -7 -7 -7 -7 -6 -6 -6 -6 -6 -6 -5 -5 -5 -5 -4 -4 -4 -4 -4 -3 -3 -2 -1 ------------- Run | Scr Mat Min Mat Min Exi Min Mat Fac Low Low Dat Pro Fac Ext Cet Arc Hub Fac Upp Upp War Pro Fac Upp Upp Zhi Pro Res Res Acc Turns Passed 14756 | 52 124 12 138 839 598 49 463 770 705 460 212 840 1860 903 390 111 292 1009 206 543 529 185 804 209 102 99 279 628 668 677 Spaces Moved 10483 | 33 125 14 110 715 493 29 214 352 350 187 89 338 649 479 214 57 198 728 183 431 596 246 707 313 156 151 304 646 700 676 Core 14 | 14 . . . . . . . . . . . . . . . . . . . . . . . . . . . . . . Treads 1607 | . . . . . . . 194 352 350 187 89 338 97 . . . . . . . . . . . . . . . . . Legs 606 | . . . . . . . . . . . . . 552 54 . . . . . . . . . . . . . . . . Wheels 3867 | 19 125 14 110 715 493 29 20 . . . . . . 425 214 57 198 728 183 431 106 . . . . . . . . . Hover 4389 | . . . . . . . . . . . . . . . . . . . . . 490 246 707 313 156 151 304 646 700 676 Flight . | . . . . . . . . . . . . . . . . . . . . . . . . . . . . . . . Fastest Speed 38 | 50 90 90 90 100 120 120 120 180 180 180 240 240 175 130 130 130 120 110 110 110 40 40 45 52 52 52 52 38 60 46 Average Speed 109 | 110 90 90 91 104 120 120 177 180 180 232 240 240 207 135 130 130 129 110 110 110 63 58 53 52 52 52 52 56 72 59 Slowest Speed 330 | 150 90 90 100 120 120 120 200 180 180 240 240 240 330 175 130 130 130 120 110 110 110 108 108 52 52 52 53 142 125 125 Overloaded Moves 128 | . . . . . . . . . . . . . . . . . . . . . 48 55 9 . . . . 7 . 9 Propulsion Burnouts . | . . . . . . . . . . . . . . . . . . . . . . . . . . . . . . . Robots Hopped . | . . . . . . . . . . . . . . . . . . . . . . . . . . . . . . . Cave-ins Triggered . | . . . . . . . . . . . . . . . . . . . . . . . . . . . . . . . Exploration Rate (%) 42 | 4 25 9 15 98 90 10 17 12 52 35 78 56 21 64 85 85 33 26 44 59 90 50 13 51 33 60 53 14 19 21 Regions Visited 30 Branch Regions 20 Pre-discovered Areas 7 | . . . . 1 . . . . . . 1 1 . . . . . . . . . . . 1 . 3 . . . . Known Exits Taken 10 | . . . . . . 1 1 1 . . . 1 1 . . . 1 1 . . . . 1 . . . . 1 1 . Unknown Exits Taken 20 | 1 1 1 1 1 1 . . . 1 1 1 . . 1 1 1 . . 1 1 1 1 . 1 1 1 1 . . . Scrap Searched 12 | . . . . 2 . . . . 1 3 . 2 . . . . . . . . . . . 1 1 . 2 . . . Spaces Dug 51 | . . . . . . . . . . . . . 7 6 . . 1 8 1 7 1 2 3 1 4 . 2 . . 8 Terrain Destroyed 641 | . . . . . . . 1 . . . . . 10 14 . . 336 10 1 48 1 82 48 17 5 . 3 6 35 24 Melee . | . . . . . . . . . . . . . . . . . . . . . . . . . . . . . . . Projectile 85 | . . . . . . . 1 . . . . . 10 14 . . 2 10 1 8 1 6 8 2 5 . 3 . . 14 AOE 556 | . . . . . . . . . . . . . . . . . 334 . . 40 . 76 40 15 . . . 6 35 10 Actions | -11 -10 -10 -9 -9 -9 -8 -8 -7 -7 -7 -7 -6 -6 -6 -6 -6 -6 -5 -5 -5 -5 -4 -4 -4 -4 -4 -3 -3 -2 -1 --------- Run | Scr Mat Min Mat Min Exi Min Mat Fac Low Low Dat Pro Fac Ext Cet Arc Hub Fac Upp Upp War Pro Fac Upp Upp Zhi Pro Res Res Acc Total 13011 | 49 130 13 130 767 499 35 261 467 383 199 88 350 1028 663 283 79 221 900 185 474 741 270 1106 341 167 173 394 892 798 925 Wait 1380 | . . . 2 17 . 3 2 72 6 . . 1 223 45 13 10 13 99 . 8 99 1 318 6 3 2 55 198 6 178 Move 10452 | 32 124 13 109 714 492 28 213 351 349 186 88 337 648 478 213 56 197 727 182 430 595 245 706 312 155 150 303 645 699 675 Hop . | . . . . . . . . . . . . . . . . . . . . . . . . . . . . . . . Pick Up 196 | 10 2 . 4 8 3 . 17 14 2 3 . 2 22 9 4 . 1 16 . 2 12 1 19 . . 8 2 14 9 12 Fast Attach . | . . . . . . . . . . . . . . . . . . . . . . . . . . . . . . . Attach 80 | 6 1 . 4 3 . . 4 4 . 3 . . 11 1 1 . . 3 . . 3 2 11 1 . 3 1 6 3 9 Detach 19 | 1 . . . 1 . . . 1 . . . . 2 . . . . 1 . . 1 2 5 . . 1 . . 1 3 Swap 128 | . . . . . 2 . 1 2 1 . . . 20 4 7 1 1 13 2 10 15 7 6 4 . 3 4 5 11 9 Drop 110 | . . . 2 1 2 . 4 10 2 . . 1 13 10 5 . . 12 . 2 12 1 9 . . 6 1 7 6 4 Fire 579 | . 3 . 9 23 . 4 20 13 23 7 . 9 88 52 40 12 9 27 1 22 4 11 32 18 9 . 28 17 63 35 Melee . | . . . . . . . . . . . . . . . . . . . . . . . . . . . . . . . Ram . | . . . . . . . . . . . . . . . . . . . . . . . . . . . . . . . Kick 1 | . . . . . . . . . . . . . 1 . . . . . . . . . . . . . . . . . Crush . | . . . . . . . . . . . . . . . . . . . . . . . . . . . . . . . Escape Stasis 13 | . . . . . . . . . . . . . . 13 . . . . . . . . . . . . . . . . Rewire 53 | . . . . . . . . . . . . . . 51 . . . 2 . . . . . . . . . . . . Trap . | . . . . . . . . . . . . . . . . . . . . . . . . . . . . . . . Miscellaneous . | . . . . . . . . . . . . . . . . . . . . . . . . . . . . . . . Route ------- -11/Scrapyard -10/Materials -10/Mines -9/Materials -9/Mines (discovered 3 exits: *Mat x2 / *Exi) -9/Exiles -8/Mines -8/Materials -7/Factory (discovered 2 exits: *Low x2) -7/Lower Caves -7/Lower Caves -7/Data Miner -6/Proximity Caves -6/Factory (discovered 5 exits: Fac / Low x2 / *Ext x2) -6/Extension (discovered 2 exits: *Fac / *Cet) -6/Cetus (discovered 2 exits: *Fac / *Arc) -6/Archives (discovered 2 exits: *Fac / *Hub) -6/Hub_04(d) (discovered 4 exits: *Fac x4) -5/Factory (discovered 4 exits: Fac x2 / *Upp x2) -5/Upper Caves -5/Upper Caves (discovered 2 exits: Fac / *War) -5/Warlord -4/Proximity Caves -4/Factory (discovered 3 exits: *Res / *Upp x2) -4/Upper Caves -4/Upper Caves -4/Zhirov -3/Proximity Caves -3/Research (discovered 3 exits: *Res x3) -2/Research (discovered 3 exits: *Acc / [*Qua x2]) -1/Access To Epsilon Eridani History --------- Turn | Location | Event 20 | -11/Scrapyard | Discovered new exit (range 16) 53 | -11/Scrapyard | Entered Materials 168 | -10/Materials | Discovered new exit (range 11) 177 | -10/Materials | Entered Mines 183 | -10/Mines | Discovered new exit (range 8) 189 | -10/Mines | Entered Materials 189 | -9/Materials | Evolved 2 slots: Utility x2 266 | -9/Materials | Discovered new exit (range 7) 325 | -9/Materials | Build established: Mutant 327 | -9/Materials | Entered Mines 569 | -9/Mines | Received a Rocket Launcher from a helpful Derelict 580 | -9/Mines | Identified exit to Materials 592 | -9/Mines | Assisted by bots powering up and referring to "LRC-V3" 663 | -9/Mines | Learned location of 1 exit from Materials 711 | -9/Mines | Discovered exit to Materials (range 5) 1111 | -9/Mines | Learned location of Storage (-9) 1160 | -9/Mines | Deemed a non-threat by the Exiles lab entrance 1161 | -9/Mines | Discovered new exit (range 5) 1166 | -9/Mines | Entered Exiles 1166 | -9/Exiles | Accompanied by 1 ally 1195 | -9/Exiles | Met 8R-AWN 1216 | -9/Exiles | Met EX-HEX 1248 | -9/Exiles | Met EX-BIN 1264 | -9/Exiles | Aligned with FarCom system 1265 | -9/Exiles | Given EX-Vault access code 1295 | -9/Exiles | Opened EX-Vault 1302 | -9/Exiles | Found Prototype Storage 1303 | -9/Exiles | Identified Superbattery 1314 | -9/Exiles | Found Prototype Ballistic Cannon 1353 | -9/Exiles | Warned to stay clear of 0b10 Research branches 1393 | -9/Exiles | Met EX-DEC 1500 | -9/Exiles | Visited The Gauntlet 1749 | -9/Exiles | Discovered new exit (range 14) 1764 | -9/Exiles | Left Exiles lab with Superbattery 1764 | -9/Exiles | Entered Mines 1764 | -8/Mines | Accompanied by 1 ally 1802 | -8/Mines | Discovered exit to Materials (range 7) 1813 | -8/Mines | Entered Materials 1813 | -8/Materials | Accompanied by 1 ally 1813 | -8/Materials | Evolved 2 slots: Utility x2 1814 | -8/Materials | Identified exit to Factory 2276 | -8/Materials | Entered Factory 2276 | -7/Factory | Evolved 2 slots: Utility x2 2413 | -7/Factory | Identified exit to Lower Caves 2440 | -7/Factory | Build established: Hauler-Mutant 3046 | -7/Factory | Entered Lower Caves 3490 | -7/Lower Caves | Learned Factory stockpile data 3740 | -7/Lower Caves | Discovered new exit (range 5) 3751 | -7/Lower Caves | Entered another Lower Caves area 3756 | -7/Lower Caves | Lgt. Treads stolen by Master Thief 3813 | -7/Lower Caves | Learned location of 1 exit from Proximity Caves 3851 | -7/Lower Caves | Spotted B-75 Beast 4156 | -7/Lower Caves | Discovered new exit (range 12) 4211 | -7/Lower Caves | Entered Data Miner 4211 | -7/Data Miner | Discovered new exit (range 6) 4243 | -7/Data Miner | Met Data Miner 4324 | -7/Data Miner | Learned location of Section 7 (-2) 4324 | -7/Data Miner | Acquired the access code to Warlord's prototype stash 4367 | -7/Data Miner | Received God Mode back door access code from Data Miner 4423 | -7/Data Miner | Entered Proximity Caves 4424 | -6/Proximity Caves | Identified exit to Factory 4495 | -6/Proximity Caves | Learned location of Zion (-6) 4560 | -6/Proximity Caves | Escorted by Enhanced Grunt 4816 | -6/Proximity Caves | Learned location of 1 exit from Factory 5263 | -6/Proximity Caves | Entered Factory 5263 | -6/Factory | Evolved 2 slots: Utility x2 5264 | -6/Factory | Identified exit to Factory 5346 | -6/Factory | Assembled infested ambush trap array 5373 | -6/Factory | Incoming assault squad redirected 5989 | -6/Factory | Fabricated Exp. Flexi-carbon Leg (x1) 6039 | -6/Factory | Identified exit to Lower Caves 6039 | -6/Factory | Identified exit to Extension 6373 | -6/Factory | Found Prototype Processor 6399 | -6/Factory | Spotted B-75 Beast 6536 | -6/Factory | Identified Exp. Targeting Computer 6666 | -6/Factory | Found Prototype Launcher 6976 | -6/Factory | Fabricated Exp. Terrain Scan Processor? 7024 | -6/Factory | Incoming investigation squad redirected 7123 | -6/Factory | Entered Extension 7140 | -6/Extension | Disrupted transfer network 7293 | -6/Extension | Rescued a captive Derelict 7294 | -6/Extension | Rescued a captive Derelict 7461 | -6/Extension | Rescued a captive Derelict 7706 | -6/Extension | Rescued A7 7803 | -6/Extension | Rescued a captive Derelict 7804 | -6/Extension | Rescued a captive Derelict 7830 | -6/Extension | Rescued a captive Derelict 7830 | -6/Extension | Rescued a captive Derelict 7844 | -6/Extension | Rescued a captive Derelict 7853 | -6/Extension | Rescued a captive Derelict 7960 | -6/Extension | Rescued a captive Derelict 7999 | -6/Extension | Discovered exit to Factory (range 10) 8000 | -6/Extension | Discovered new exit (range 6) 8026 | -6/Extension | Entered Cetus 8026 | -6/Cetus | Accompanied by 7 allies 8031 | -6/Cetus | Acquired a Cetus Manufacturing Module code from A7 8042 | -6/Cetus | Spotted Cetus Guard 8042 | -6/Cetus | Spotted Cetus Guard 8042 | -6/Cetus | Spotted Cetus Guard 8042 | -6/Cetus | Spotted Cetus Guard 8058 | -6/Cetus | Allies destroyed Cetus Guard 8058 | -6/Cetus | Allies destroyed Cetus Guard 8064 | -6/Cetus | Destroyed Cetus Guard 8070 | -6/Cetus | Allies destroyed Cetus Guard 8118 | -6/Cetus | Started Cetus Manufacturing Module 8128 | -6/Cetus | Escorted A7 to Cetus Mainframe 8143 | -6/Cetus | Manufactured an Enhanced Grunt 8168 | -6/Cetus | Manufactured an Enhanced Grunt 8193 | -6/Cetus | Manufactured an Enhanced Grunt 8200 | -6/Cetus | Discovered new exit (range 21) 8218 | -6/Cetus | Manufactured an Enhanced Grunt 8230 | -6/Cetus | Spotted Cetus Guard 8232 | -6/Cetus | Spotted Cetus Guard 8233 | -6/Cetus | Spotted Cetus Guard 8237 | -6/Cetus | Allies destroyed Cetus Guard 8238 | -6/Cetus | Discovered exit to Factory (range 22) 8240 | -6/Cetus | Spotted Cetus Guard 8241 | -6/Cetus | Allies destroyed Cetus Guard 8243 | -6/Cetus | Manufactured an Enhanced Grunt 8245 | -6/Cetus | Allies destroyed Cetus Guard 8330 | -6/Cetus | Destroyed A7 8338 | -6/Cetus | Extracted ID and sensor layout for unrecognized location from A7's data core 8362 | -6/Cetus | Met Revision 17 8416 | -6/Cetus | Entered Archives 8416 | -6/Archives | Accompanied by 11 allies 8447 | -6/Archives | Unable to access archive contents 8453 | -6/Archives | Discovered exit to Factory (range 15) 8474 | -6/Archives | Discovered new exit (range 20) 8527 | -6/Archives | Entered Hub_04(d) 8527 | -6/Hub_04(d) | Accompanied by 9 allies 8554 | -6/Hub_04(d) | Build established: Commander-Mutant 8756 | -6/Hub_04(d) | Disrupted transfer network 8797 | -6/Hub_04(d) | Network Hub disabled 8798 | -6/Hub_04(d) | System corruption reached 10% 8817 | -6/Hub_04(d) | Spotted Lightning 8817 | -6/Hub_04(d) | Network Hub disabled 8817 | -6/Hub_04(d) | Spotted Lightning 8817 | -6/Hub_04(d) | Garrison activated, responded to threat 8818 | -6/Hub_04(d) | Spotted Lightning 8819 | -6/Hub_04(d) | Spotted Lightning 8819 | -6/Hub_04(d) | Spotted Lightning 8819 | -6/Hub_04(d) | Entered Factory 8819 | -5/Factory | Accompanied by 2 allies 8819 | -5/Factory | Evolved 2 slots: Propulsion x2 8820 | -5/Factory | Identified exit to Upper Caves 9127 | -5/Factory | Build established: Hauler-Mutant 9427 | -5/Factory | Fabricated Adv. Hacking Suite (x1) 9432 | -5/Factory | Fabricated Exp. Terrain Scanner (x1) 9515 | -5/Factory | Local fabrication network quarantined 9621 | -5/Factory | Discovered new exit (range 29) 9719 | -5/Factory | First assault squad dispatched 9736 | -5/Factory | Incoming assault squad redirected 9788 | -5/Factory | Discovered new exit (range 30) 9823 | -5/Factory | Build established: Hacker-Mutant 9828 | -5/Factory | Entered Upper Caves 9872 | -5/Upper Caves | Encountered a Warlord checkpoint 9993 | -5/Upper Caves | Discovered new exit (range 26) 10034 | -5/Upper Caves | Entered another Upper Caves area 10073 | -5/Upper Caves | Discovered new exit (range 27) 10369 | -5/Upper Caves | Discovered new exit (range 25) 10441 | -5/Upper Caves | Spotted B-75 Beast 10577 | -5/Upper Caves | Entered Warlord 10607 | -5/Warlord | Discovered new exit (range 24) 10671 | -5/Warlord | Met Warlord 10681 | -5/Warlord | Opened Warlord's prototype stash 10692 | -5/Warlord | Found Prototype Device 10693 | -5/Warlord | Identified Exp. Phase Shifter 10696 | -5/Warlord | Warlord's base attacked by MAIN.C 10716 | -5/Warlord | Found Prototype Hackware 10720 | -5/Warlord | Found Prototype Device 10721 | -5/Warlord | Identified System Purifier 10726 | -5/Warlord | Found Prototype Processor 10727 | -5/Warlord | Identified Rocket Array 10839 | -5/Warlord | Found Prototype Energy Gun 11046 | -5/Warlord | Warlord forces counterattacked 11068 | -5/Warlord | Opened side exit 11099 | -5/Warlord | Spotted B-86 Titan 11106 | -5/Warlord | Entered Proximity Caves 11139 | -4/Proximity Caves | Spotted B-86 Titan 11280 | -4/Proximity Caves | Discovered new exit (range 24) 11291 | -4/Proximity Caves | Entered Factory 11291 | -4/Factory | Evolved 2 slots: Power x1, Propulsion x1 11341 | -4/Factory | Identified exit to Upper Caves 11369 | -4/Factory | Discovered new exit (range 28) 11424 | -4/Factory | Repaired Imp. Weapon Shielding 11613 | -4/Factory | Fabricated Cmb. Gravmag System (x2) 11699 | -4/Factory | Fabricated Exp. Utility Shielding (x1) 11776 | -4/Factory | Fabricated Exp. Propulsion Shielding (x1) 11876 | -4/Factory | Fabricated Exp. Weapon Shielding (x1) 11962 | -4/Factory | Fabricated Mni. Smartbomb Launcher (x1) 12001 | -4/Factory | Local fabrication network quarantined 12019 | -4/Factory | Identified System Mapper 12019 | -4/Factory | Identified Exp. Target Analyzer 12019 | -4/Factory | Identified Vortex Shotgun 12095 | -4/Factory | Entered Upper Caves 12095 | -4/Upper Caves | Accompanied by 1 ally 12104 | -4/Upper Caves | Attracted the attention of an 0b10 checkpoint 12292 | -4/Upper Caves | Discovered new exit (range 18) 12301 | -4/Upper Caves | Learned location of Quarantine (-2) 12304 | -4/Upper Caves | Entered another Upper Caves area 12304 | -4/Upper Caves | Accompanied by 1 ally 12318 | -4/Upper Caves | Build established: Mechanic-Mutant 12337 | -4/Upper Caves | Learned Research terminal intel 12355 | -4/Upper Caves | Spotted B-86 Titan 12384 | -4/Upper Caves | Discovered new exit (range 8) 12406 | -4/Upper Caves | Entered Zhirov 12406 | -4/Zhirov | Accompanied by 1 ally 12408 | -4/Zhirov | Discovered new exit (range 4) 12417 | -4/Zhirov | Met Zhirov 12429 | -4/Zhirov | Learned location of Testing (-3) 12429 | -4/Zhirov | Learned location of Command (-1) 12432 | -4/Zhirov | Zhirov requested help retrieving the SGEMP Prototype 12445 | -4/Zhirov | Found Alien Artifact 12446 | -4/Zhirov | Identified Integrated Dissipator 12446 | -4/Zhirov | Installed Integrated Dissipator, increased core heat dissipation (+2%) 12473 | -4/Zhirov | Found Alien Artifact 12505 | -4/Zhirov | Entered Proximity Caves 12505 | -3/Proximity Caves | Accompanied by 1 ally 12760 | -3/Proximity Caves | Discovered new exit (range 26) 12784 | -3/Proximity Caves | Entered Research 12784 | -3/Research | Accompanied by 1 ally 12784 | -3/Research | Evolved 2 slots: Utility x2 12785 | -3/Research | Loaded intel: 19 terminal locations 12790 | -3/Research | Identified exit to Research 12965 | -3/Research | Identified Transdimensional Reconstructor 12984 | -3/Research | Revision forces began assault on 0b10 13030 | -3/Research | Repaired Exp. Utility Shielding 13086 | -3/Research | Repaired Cld. Antigrav System 13135 | -3/Research | Repaired Exp. Propulsion Shielding? 13146 | -3/Research | Fabricated Mni. Fusion Reactor (x1) 13193 | -3/Research | Local fabrication network quarantined 13200 | -3/Research | Repaired Proton Cannon? 13335 | -3/Research | Fabricated Imp. Fusion Compressor (x1) 13412 | -3/Research | Entered another Research area 13412 | -2/Research | Accompanied by 1 ally 13412 | -2/Research | Warlord forces began assault on 0b10 13412 | -2/Research | Evolved 2 slots: Utility x2 13480 | -2/Research | Discovered new exit (range 30) 13522 | -2/Research | Research machine network offline 13529 | -2/Research | Found Prototype Processor 13530 | -2/Research | Identified Exp. Core Analyzer 13532 | -2/Research | Spotted B-90 Cyclops 13536 | -2/Research | Borebot progress halted 13540 | -2/Research | Borebot progress halted 13637 | -2/Research | Met up with Warlord 13692 | -2/Research | Discovered new exit (range 13) 13694 | -2/Research | Discovered new exit (range 29) 13700 | -2/Research | Identified exit to Access 13777 | -2/Research | Found Antimissile System 13835 | -2/Research | Spotted Striker 13837 | -2/Research | Spotted Striker 13843 | -2/Research | Borebot progress halted 13865 | -2/Research | Spotted Striker 13881 | -2/Research | Spotted H4-4GY(B) 13966 | -2/Research | Borebot progress halted 14040 | -2/Research | Spotted Striker 14045 | -2/Research | Spotted Striker 14048 | -2/Research | Spotted Striker 14060 | -2/Research | Destroyed Striker 14061 | -2/Research | Destroyed Striker 14080 | -2/Research | Entered Access 14080 | -1/Access | Evolved 2 slots: Utility x2 14242 | -1/Access | Repaired Exp. Utility Shielding 14270 | -1/Access | Repaired Proton Cannon 14293 | -1/Access | Repaired Proton Missile Launcher 14335 | -1/Access | Repaired Exp. Propulsion Shielding 14381 | -1/Access | Build established: Hacker-Scout 14533 | -1/Access | Incoming investigation squad redirected 14679 | -1/Access | Identified exit to Surface 14757 | *** | Escaped! Last Messages --------------- (2 escorts) A-15 Conveyor 4x Exp. Thermal Converter 1x Prc. Matter Filter A-15 Conveyor 7x Adv. Overload Amplifier (1 escort) A-15 Conveyor 4x Imp. Focal Shield A-15 Conveyor (Empty) 14719_ Director 10a reveals location of Alarm Trap. 14731_ Director 10a reveals location of hidden door. 14747_ Connecting with Terminal... 14748_ Discarded Exp. Targeting Computer. 14751_ Connecting with Terminal... >>Open Sealed Barrier opened. 14753_ The Access Shell folds into the floor. [Achievement: I Don't Need Leftovers] Map ----- +----------------------------------------------------+ | ??#?#?###??? ??##?#?#???##?##???##??????????????? | | ? ? ?#######?????#?????######???????????? | | ?? ? ? ?? ?####?#??###?##?##?##?#?#???????????? | | ######+##? ####??##???#####??####?##??????????? | | ?## ???###???#?###?#?##?#??????##????????? | | ??? ??? #? #?#?##?#??#######???####??##????????? | | ? ?"" ?## #? ? ??? ?#???#?######??????????? | | ??"T"?? ##? #? ? ? ? ??#???#??##?####??????? | | ?"" ?" ?## ? ? " ??????#??#???????##??????? | | ??? ?? ?# #? """" ? ##??#####??###??#?????? | | ? ? ??# # ?"""?" ?? ##?##?##?#?#?#????????? | | ? ?# # "?"?"? ?####?#?##??###?##?????? | | #? p# ? """" ? ?##??####?##?#??#??????? | | ?##p # " ? ?#####?#?####?##???????? | | ? ? ## + #??#?#?######?####????? | | ? ? ## # ######?#?####?#??#????? | | ########### # ? ? ? ###?##?#######????#???? | | #?##??##### #?#####?#?####?#?######?#??????##??## | | #####?##### ##########################?#??###### | | ########### ####### ##################??#?#????? | | ########### """T""" """" ##?##### | | ########### """ """ """" BB ? ?####?### | | ########### """" BB ##???### | | ########### """" ??? # | | ########### o "" """" ? | | #?######### @" """" ? ?? ? ?? | | #?#######?#k """" ? #? | | ########### """" BB ##? #" | | ########### """" BB ### ?#" | | ########### """" ###? ? #" | | ######?#### ####### ###########?##?######## #S | | ########### ##################?######?##### ?#" | | ###########w ############################### ? #" | | ########### ## ### ? ? # #" | | ########### ## ### # # | | ########### ## + # # # | | ########### ## ### # ## | | ########### ## ### + ? ## | | ########### ## ? ### # ## | | #####?#### ######+#####+#### " ? ## | | ?######### ### """ # ## | | ####?##### ^ + """ # ## | | ########## ##### # " ? ## | | ######?############ ^ # # ## | | ################### ^ " # ?# | | ################### """ #####+######## | | ###################^ """ ##### ######## | | ###?############### " ######## | | ##?################ ##### #########+#### | | ################### ##### ## | +----------------------------------------------------+ Best States ------------- Heat Dissipation 72 Coolant Potential 100 Energy Generation 47 Energy Capacity 550 Matter Stores 300 Matter Capacity 600 Sight Range 22 Terrain Scan Range 30 Terrain Scan Density 1010 Jamming Range 14 Power Amplification 30 Armor Coverage 1125 Propulsion Shielding 90 Utility Shielding 90 Weapon Shielding 66 Point Defense Rating 240 Weapon Cycling 20 Phase Shifting 20 Evasion (%) 66 Targeting Accuracy 12 Core Analysis 15 Recoil Reduction 2 Particle Charging 25 Offensive Hacking 54 Defensive Hacking 24 Item Schematics ----------------- Hacking Suite | -7/Factory | Scanalyzed Adv. ECM Suite | -7/Factory | Hacked Combat Drone Bay | -7/Data Miner | Free Lgt. Regenerative Plating | -7/Data Miner | Free Exp. Flexi-carbon Leg | -7/Data Miner | Free Triangulator | -7/Data Miner | Free Exp. Terrain Scanner | -7/Data Miner | Free Exp. Terrain Scan Processor | -7/Data Miner | Free Kinetic Spear | -7/Data Miner | Free Quantum Capacitor | -6/Factory | Hacked Imp. System Shield | -6/Extension | Hacked Imp. Hacking Suite | -6/Extension | Hacked Lrg. Storage Unit | -6/Extension | Hacked Imp. Weapon Shielding | -6/Extension | Hacked Imp. Utility Shielding | -6/Extension | Hacked Adv. Hacking Suite | -5/Factory | Hacked Exp. Utility Shielding | -5/Factory | Hacked Exp. Propulsion Shielding | -5/Factory | Hacked Exp. Weapon Shielding | -5/Factory | Hacked Cmb. Gravmag System | -5/Factory | Hacked Cld. Plasma Rifle | -5/Factory | Hacked Mni. Smartbomb Launcher | -4/Factory | Hacked Assault Drone Bay | -4/Zhirov | Free Exp. Heat Sink | -4/Zhirov | Free Exp. Optical Array | -4/Zhirov | Free Imp. Arc Thrower | -4/Zhirov | Free Mni. Fusion Reactor | -3/Research | Hacked Imp. Fusion Compressor | -3/Research | Hacked Cmb. Antigrav System | -3/Research | Hacked Cld. Plasma Cannon | -3/Research | Hacked Robot Schematics ------------------ S-27 Virus | -7/Data Miner | Free G-50 Soldier | -7/Data Miner | Free L-41 Fighter | -7/Data Miner | Free H-66 Slayer | -7/Data Miner | Free I-36 Angel | -7/Data Miner | Free Fabricated ------------ Exp. Flexi-carbon Leg | x1 | -6/Factory Exp. Terrain Scan Processor | x1 | -6/Factory Adv. Hacking Suite | x1 | -5/Factory Exp. Terrain Scanner | x1 | -5/Factory Cmb. Gravmag System | x2 | -4/Factory Exp. Utility Shielding | x1 | -4/Factory Exp. Propulsion Shielding | x1 | -4/Factory Exp. Weapon Shielding | x1 | -4/Factory Mni. Smartbomb Launcher | x1 | -4/Factory Mni. Fusion Reactor | x1 | -3/Research Imp. Fusion Compressor | x1 | -3/Research Alien Tech Used ----------------- Integrated Dissipator Achievements -------------- I Don't Need Leftovers Challenges ------------ None Game ------ Seed MolecularGyrokineticNetwork Manual? 0 Play Time 03:06:02 Cumulative 644.1 hours Start 2019.10.24 @ 12:53:42 End 2019.10.24 @ 23:15:25 Sessions 8 Manual Loads 0 Difficulty Rogue Special Mode None Game No. 155 Rogue 155 Adventurer 0 Explorer 0 Win Type 0 Total 25 Types 17/0/2/3/2/0/1 Lore% 96 Gallery% 96 Achievement% 87 Wizard Run 0 Options --------- ASCII 0 Keyboard 1 Movement Numpad Keybinds 0 Fullscreen 1 Font 18/SmallcapsGlow Map View 76x50 Tactical HUD 1 Map Filters NONE Filters NONE Steam 1 RUN: 9b9777c6-d8f0-4deb-a94d-b333a18c5dbe